fUST/lending_fUST_20250523
["ID","MTS","AMOUNT","RATE_DAILY","PERIOD"]
[362122591,1748004657190,-368.77764893,0.00018693,2]
[362122592,1748004657199,-430.0,0.00018693,2]
[362122593,1748004657211,-430.0,0.00018693,2]
[362122594,1748004657222,-430.0,0.00018693,2]
[362122595,1748004657232,-430.0,0.00018693,2]
[362122596,1748004657242,-430.0,0.00018693,2]
[362122597,1748004657252,-430.0,0.00018693,2]
[362122598,1748004657262,-430.0,0.00018693,2]
[362122599,1748004657272,-341.31382943,0.00018693,2]
[362122600,1748004657282,-430.0,0.00018693,2]
[362122601,1748004657292,-430.0,0.00018693,2]
[362122602,1748004657302,-430.0,0.00018693,2]
[362122603,1748004657312,-150.7125557,0.00018693,2]
[362122604,1748004657323,-430.0,0.00018693,2]
[362122605,1748004657332,-430.0,0.00018693,2]
[362122606,1748004657343,-430.0,0.00018693,2]
[362122607,1748004657352,-430.0,0.00018693,2]
[362122608,1748004657362,-430.0,0.00018693,2]
[362122609,1748004657372,-410.0,0.00018693,2]
[362122610,1748004657382,-430.0,0.00018693,2]
[362122611,1748004657392,-533.90782298,0.00018693,2]
[362122612,1748004657402,-430.0,0.00018693,2]
[362122613,1748004657413,-430.0,0.00018693,2]
[362122614,1748004657423,-430.0,0.00018693,2]
[362122615,1748004657433,-430.0,0.00018693,2]
[362122616,1748004657443,-430.0,0.00018693,2]
[362122617,1748004657453,-430.0,0.00018693,2]
[362122618,1748004657463,-430.0,0.00018693,2]
[362122619,1748004657476,-430.0,0.00018693,2]
[362122620,1748004657485,-430.0,0.00018693,2]
[362122621,1748004657495,-430.0,0.00018693,2]
[362122622,1748004657504,-430.0,0.00018693,2]
[362122623,1748004657514,-337.51400491,0.00018693,2]
[362122624,1748004657524,-430.0,0.00018693,2]
[362122625,1748004657534,-567.03179012,0.00018693,2]
[362122626,1748004657544,-430.0,0.00018693,2]
[362122627,1748004657554,-430.0,0.00018693,2]
[362122628,1748004657564,-430.0,0.00018693,2]
[362122629,1748004657575,-430.0,0.00018693,2]
[362122630,1748004657585,-430.0,0.00018693,2]
[362122631,1748004657597,-436.70198145,0.000189,2]
[362122632,1748004657607,-863.97,0.00018904,2]
[362122633,1748004657616,-771.77,0.00018904,2]
[362122634,1748004657628,-430.0,0.00018904,2]
[362122635,1748004657637,-200.15,0.00018904,2]
[362122636,1748004657647,-430.0,0.00018904,2]
[362122637,1748004657657,-430.0,0.00018904,2]
[362122638,1748004657667,-360.48360462,0.00018904,2]
[362122639,1748004657677,-430.0,0.00018904,2]
[362122640,1748004657688,-430.0,0.00018904,2]
[362122641,1748004657697,-449.79,0.00018904,2]
[362122642,1748004657707,-555.55,0.00018904,2]
[362122643,1748004657720,-648.28,0.00018904,2]
[362122644,1748004657731,-430.0,0.00018904,2]
[362122645,1748004657742,-430.0,0.00018904,2]
[362122646,1748004657751,-430.0,0.00018904,2]
[362122647,1748004657763,-430.0,0.00018904,2]
[362122648,1748004657772,-430.0,0.00018904,2]
[362122649,1748004657782,-242.85,0.00018904,2]
[362122650,1748004657792,-438.27,0.00018904,2]
[362122651,1748004657803,-430.0,0.00018904,2]
[362122652,1748004657813,-430.0,0.00018904,2]
[362122653,1748004657823,-1055.43,0.00018904,2]
[362122654,1748004657833,-531.72,0.00018904,2]
[362122655,1748004657843,-430.0,0.00018904,2]
[362122656,1748004657853,-1130.78,0.00018904,2]
[362122657,1748004657863,-430.0,0.00018904,2]
[362122658,1748004657874,-430.0,0.00018904,2]
[362122659,1748004657884,-365.63,0.00018967,2]
[362122660,1748004657895,-383.22447969,0.00018967,2]
[362122661,1748004657907,-479.01534695,0.00018967,2]
[362122662,1748004657917,-382.77394375,0.00018967,2]
[362122663,1748004657929,-430.0,0.00018967,2]
[362122664,1748004657940,-430.0,0.00018967,2]
[362122665,1748004657951,-430.0,0.00018967,2]
[362122666,1748004658055,-453.34275813,0.00018967,2]
[362122667,1748004658067,-486.32506872,0.00018967,2]
[362122668,1748004658080,-485.75747863,0.00018967,2]
[362122669,1748004658092,-484.7468304,0.00018967,2]
[362122670,1748004658104,-514.7,0.00018967,2]
[362122671,1748004658116,-430.0,0.00018967,2]
[362122672,1748004658128,-430.0,0.00018967,2]
[362122673,1748004658139,-430.0,0.00018967,2]
[362122674,1748004658150,-430.0,0.00018967,2]
[362122675,1748004658162,-430.0,0.00018967,2]
[362122676,1748004658173,-430.0,0.00018967,2]
[362122677,1748004658184,-430.0,0.00018967,2]
[362122678,1748004658194,-430.0,0.00018967,2]
[362122679,1748004658205,-430.0,0.00018967,2]
[362122680,1748004658217,-430.0,0.00018967,2]
[362122681,1748004658235,-430.0,0.00018967,2]
[362122682,1748004658247,-430.0,0.00018967,2]
[362122683,1748004658258,-430.0,0.00018967,2]
[362122684,1748004658268,-487.9,0.00018967,2]
[362122685,1748004658279,-430.0,0.00018967,2]
[362122686,1748004658290,-430.0,0.00018967,2]
[362122687,1748004658301,-430.0,0.00018967,2]
[362122688,1748004658312,-430.0,0.00018967,2]
[362122689,1748004658322,-430.0,0.00018967,2]
[362122690,1748004658333,-430.0,0.00018967,2]
[362122691,1748004658343,-157.29330944,0.00018967,2]
[362122692,1748004658353,-430.0,0.00018967,2]
[362122693,1748004658363,-863.97,0.00019178,2]
[362122694,1748004658373,-771.77,0.00019178,2]
[362122695,1748004658384,-430.0,0.00019178,2]
[362122696,1748004658393,-165.15,0.00019178,2]
[362122697,1748004658403,-430.0,0.00019178,2]
[362122698,1748004658414,-408.9,0.00019178,2]
[362122699,1748004658424,-430.0,0.00019178,2]
[362122700,1748004658434,-449.79,0.00019178,2]
[362122701,1748004658444,-648.28,0.00019178,2]
[362122702,1748004658455,-430.0,0.00019178,2]
[362122703,1748004658465,-430.0,0.00019178,2]
[362122704,1748004658481,-430.0,0.00019178,2]
[362122705,1748004658491,-430.0,0.00019178,2]
[362122706,1748004658502,-430.0,0.00019178,2]
[362122707,1748004658511,-438.27,0.00019178,2]
[362122708,1748004658521,-430.0,0.00019178,2]
[362122709,1748004658532,-166.15,0.00019178,2]
[362122710,1748004658542,-1055.43,0.00019178,2]
[362122711,1748004658552,-531.72,0.00019178,2]
[362122712,1748004658562,-241.8,0.00019178,2]
[362122713,1748004658573,-430.0,0.00019178,2]
[362122714,1748004658583,-430.0,0.00019178,2]
[362122715,1748004658595,-430.0,0.00019178,2]
[362122716,1748004658605,-430.0,0.00019178,2]
[362122717,1748004658616,-430.0,0.00019178,2]
[362122718,1748004658627,-1130.78,0.00019178,2]
[362122719,1748004658638,-430.0,0.00019178,2]
[362122720,1748004658648,-211.73223063,0.00019178,2]
[362122721,1748004658658,-430.0,0.00019178,2]
[362122722,1748004658667,-161.60590693,0.00019189,2]
[362122723,1748004658678,-430.0,0.00019241,2]
[362122724,1748004658688,-430.0,0.00019241,2]
[362122725,1748004658698,-498.0,0.00019241,2]
[362122726,1748004658708,-430.0,0.00019241,2]
[362122727,1748004658720,-430.0,0.00019241,2]
[362122728,1748004658730,-863.97,0.00019452,2]
[362122729,1748004658739,-771.77,0.00019452,2]
[362122730,1748004658749,-430.0,0.00019452,2]
[362122731,1748004658759,-430.0,0.00019452,2]
[362122732,1748004658769,-430.0,0.00019452,2]
[362122733,1748004658779,-449.79,0.00019452,2]
[362122734,1748004658789,-648.28,0.00019452,2]
[362122735,1748004658799,-430.0,0.00019452,2]
[362122736,1748004658809,-430.0,0.00019452,2]
[362122737,1748004658819,-307.25,0.00019452,2]
[362122738,1748004658829,-430.0,0.00019452,2]
[362122739,1748004658839,-430.0,0.00019452,2]
[362122740,1748004658848,-438.27,0.00019452,2]
[362122741,1748004658858,-430.0,0.00019452,2]
[362122742,1748004658868,-1055.43,0.00019452,2]
[362122743,1748004658878,-531.72,0.00019452,2]
[362122744,1748004658887,-1130.78,0.00019452,2]
[362122745,1748004658897,-430.0,0.00019452,2]
[362122746,1748004658907,-430.0,0.00019452,2]
[362122747,1748004658917,-236.2,0.00019515,2]
[362122748,1748004658927,-430.0,0.00019515,2]
[362122749,1748004658937,-203.57552087,0.00019567,2]
[362122750,1748004658947,-863.97,0.00019726,2]
[362122751,1748004658956,-771.77,0.00019726,2]
[362122752,1748004658966,-430.0,0.00019726,2]
[362122753,1748004658978,-430.0,0.00019726,2]
[362122754,1748004658987,-430.0,0.00019726,2]
[362122755,1748004658997,-449.79,0.00019726,2]
[362122756,1748004659007,-648.28,0.00019726,2]
[362122757,1748004659017,-430.0,0.00019726,2]
[362122758,1748004659027,-430.0,0.00019726,2]
[362122759,1748004659036,-430.0,0.00019726,2]
[362122760,1748004659046,-205.05,0.00019726,2]
[362122761,1748004659055,-438.27,0.00019726,2]
[362122762,1748004659066,-430.0,0.00019726,2]
[362122763,1748004659076,-1055.43,0.00019726,2]
[362122764,1748004659086,-531.72,0.00019726,2]
[362122765,1748004659096,-1130.78,0.00019726,2]
[362122766,1748004659106,-430.0,0.00019726,2]
[362122767,1748004659115,-430.0,0.00019726,2]
[362122768,1748004659125,-452.3,0.00019789,2]
[362122769,1748004659135,-160.0,0.0001989,2]
[362122770,1748004659145,-863.97,0.0002,2]
[362122771,1748004659155,-771.77,0.0002,2]
[362122772,1748004659166,-242.6,0.0002,2]
[362122773,1748004659176,-430.0,0.0002,2]
[362122774,1748004659186,-430.0,0.0002,2]
[362122775,1748004659197,-449.79,0.0002,2]
[362122776,1748004659207,-648.28,0.0002,2]
[362122777,1748004659220,-430.0,0.0002,2]
[362122778,1748004659230,-216.0,0.0002,2]
[362122779,1748004659240,-430.0,0.0002,2]
[362122780,1748004659250,-438.27,0.0002,2]
[362122781,1748004659260,-430.0,0.0002,2]
[362122782,1748004659270,-1055.43,0.0002,2]
[362122783,1748004659286,-531.72,0.0002,2]
[362122784,1748004659296,-1130.78,0.0002,2]
[362122785,1748004659308,-155.0,0.0002,2]
[362122786,1748004659319,-430.0,0.0002,2]
[362122787,1748004659329,-430.0,0.0002,2]
[362122788,1748004659340,-364.64279,0.00020187,2]
[362122789,1748004659351,-863.97,0.00020273,2]
[362122790,1748004659361,-771.77,0.00020273,2]
[362122791,1748004659372,-430.0,0.00020273,2]
[362122792,1748004659383,-430.0,0.00020273,2]
[362122793,1748004659392,-449.79,0.00020273,2]
[362122794,1748004659403,-648.28,0.00020273,2]
[362122795,1748004659414,-280.4,0.00020273,2]
[362122796,1748004659424,-430.0,0.00020273,2]
[362122797,1748004659434,-438.27,0.00020273,2]
[362122798,1748004659444,-277.78,0.00020273,2]
[362122799,1748004659455,-1055.43,0.00020273,2]
[362122800,1748004659465,-531.72,0.00020273,2]
[362122801,1748004659478,-1130.78,0.00020273,2]
[362122802,1748004659489,-430.0,0.00020273,2]
[362122803,1748004659499,-179.5,0.00020273,2]
[362122804,1748004659509,-160.0,0.00020392,2]
[362122805,1748004659519,-894.64583333,0.00020392,2]
[362122806,1748004659530,-422.85710789,0.00020392,2]
[362122807,1748004659540,-5923.57096014,0.00020392,2]
[362122808,1748004659787,-1696.01582923,0.00020392,2]
[362122809,1748004659827,5000.0,0.00016,2]
[362122810,1748004659917,-400.0,0.00016438,2]
[362122811,1748004659927,-430.0,0.00018356,2]
[362122812,1748004659938,-430.0,0.0001863,2]
[362122813,1748004659947,-430.0,0.00018904,2]
[362122814,1748004659957,-249.54393402,0.00018904,2]
[362122815,1748004660187,-181.18021611,0.00016438,2]
[362122816,1748004660198,-134.00606598,0.00018904,2]
[362122817,1748004660208,-430.0,0.00019178,2]
[362122818,1748004660221,-430.0,0.00019452,2]
[362122819,1748004660232,-430.0,0.00019726,2]
[362122820,1748004660243,-160.0,0.0001989,2]
[362122821,1748004660253,-430.0,0.0002,2]
[362122822,1748004660264,-430.0,0.00020273,2]
[362122823,1748004660277,-5028.0746851,0.00020392,2]
[362122824,1748004660287,-160.0,0.00020392,2]
[362122825,1748004660299,-160.0,0.00020406,2]
[362122826,1748004660310,-771.77,0.00020547,2]
[362122827,1748004660321,-430.0,0.00020547,2]
[362122828,1748004660331,-430.0,0.00020547,2]
[362122829,1748004660341,-449.79,0.00020547,2]
[362122830,1748004660351,-648.28,0.00020547,2]
[362122831,1748004660362,-459.25,0.00020547,2]
[362122832,1748004660372,-438.27,0.00020547,2]
[362122833,1748004660383,-1055.43,0.00020547,2]
[362122834,1748004660394,-531.72,0.00020547,2]
[362122835,1748004660404,-1130.78,0.00020547,2]
[362122836,1748004660414,-430.0,0.00020547,2]
[362122837,1748004660424,-430.0,0.00020547,2]
[362122838,1748004660434,-155.0,0.00020548,2]
[362122839,1748004660445,-161.60590693,0.00020617,2]
[362122840,1748004660455,-771.77,0.00020821,2]
[362122841,1748004660466,-430.0,0.00020821,2]
[362122842,1748004660479,-430.0,0.00020821,2]
[362122843,1748004660489,-449.79,0.00020821,2]
[362122844,1748004660500,-648.28,0.00020821,2]
[362122845,1748004660511,-438.27,0.00020821,2]
[362122846,1748004660522,-1055.43,0.00020821,2]
[362122847,1748004660532,-531.72,0.00020821,2]
[362122848,1748004660543,-1130.78,0.00020821,2]
[362122849,1748004660553,-198.04639217,0.00020821,2]
[362122850,1748004660563,-430.0,0.00020821,2]
[362122851,1748004660573,-771.77,0.00021095,2]
[362122852,1748004660584,-430.0,0.00021095,2]
[362122853,1748004660595,-496.65,0.00021095,2]
[362122854,1748004660605,-449.79,0.00021095,2]
[362122855,1748004660615,-648.28,0.00021095,2]
[362122856,1748004660625,-438.27,0.00021095,2]
[362122857,1748004660638,-1055.43,0.00021095,2]
[362122858,1748004660648,-531.72,0.00021095,2]
[362122859,1748004660659,-1130.78,0.00021095,2]
[362122860,1748004660668,-537.32,0.00021095,2]
[362122861,1748004660678,-155.0,0.00021096,2]
[362122862,1748004660689,-771.77,0.00021369,2]
[362122863,1748004660699,-430.0,0.00021369,2]
[362122864,1748004660709,-449.79,0.00021369,2]
[362122865,1748004660721,-648.28,0.00021369,2]
[362122866,1748004660731,-438.27,0.00021369,2]
[362122867,1748004660741,-1055.43,0.00021369,2]
[362122868,1748004660752,-531.72,0.00021369,2]
[362122869,1748004660763,-1130.78,0.00021369,2]
[362122870,1748004660773,-771.77,0.00021643,2]
[362122871,1748004660783,-317.2,0.00021643,2]
[362122872,1748004660794,-449.79,0.00021643,2]
[362122873,1748004660804,-648.28,0.00021643,2]
[362122874,1748004660814,-438.27,0.00021643,2]
[362122875,1748004660824,-1055.43,0.00021643,2]
[362122876,1748004660834,-531.72,0.00021643,2]
[362122877,1748004660845,-1130.78,0.00021643,2]
[362122878,1748004660855,-155.0,0.00021644,2]
[362122879,1748004660865,-311.292,0.00021664,2]
[362122880,1748004660875,-5000.0,0.00021917,2]
[362122881,1748004660885,-5000.0,0.00021917,2]
[362122882,1748004660895,-5000.0,0.00021917,2]
[362122883,1748004660989,-5000.0,0.00021917,2]
[362122884,1748004660999,-5000.0,0.00021917,2]
[362122885,1748004661011,-771.77,0.00021917,2]
[362122886,1748004661022,-449.79,0.00021917,2]
[362122887,1748004661033,-648.28,0.00021917,2]
[362122888,1748004661044,-438.27,0.00021917,2]
[362122889,1748004661055,-1055.43,0.00021917,2]
[362122890,1748004661065,-531.72,0.00021917,2]
[362122891,1748004661076,-1130.78,0.00021917,2]
[362122892,1748004661086,-500.0,0.00021918,2]
[362122893,1748004661096,-500.0,0.00021918,2]
[362122894,1748004661106,-500.0,0.00021918,2]
[362122895,1748004661116,-500.0,0.00021918,2]
[362122896,1748004661126,-500.0,0.00021918,2]
[362122897,1748004661136,-500.0,0.00021918,2]
[362122898,1748004661145,-500.0,0.00021918,2]
[362122899,1748004661155,-500.0,0.00021918,2]
[362122900,1748004661164,-500.0,0.00021918,2]
[362122901,1748004661175,-500.0,0.00021918,2]
[362122902,1748004661184,-500.0,0.00021918,2]
[362122903,1748004661194,-500.0,0.00021918,2]
[362122904,1748004661204,-500.0,0.00021918,2]
[362122905,1748004661214,-500.0,0.00021918,2]
[362122906,1748004661225,-500.0,0.00021918,2]
[362122907,1748004661234,-500.0,0.00021918,2]
[362122908,1748004661244,-500.0,0.00021918,2]
[362122909,1748004661254,-500.0,0.00021918,2]
[362122910,1748004661263,-360.75400689,0.00021918,2]
[362122911,1748004661272,-500.0,0.00021918,2]
[362122912,1748004661282,-500.0,0.00021918,2]
[362122913,1748004661292,-500.0,0.00021918,2]
[362122914,1748004661302,-400.0,0.00021918,2]
[362122915,1748004661312,-998.56723633,0.00022,5]
[362122916,1748004661321,-161.60590693,0.00022044,2]
[362122917,1748004661332,-771.77,0.00022191,2]
[362122918,1748004661341,-449.79,0.00022191,2]
[362122919,1748004661351,-648.28,0.00022191,2]
[362122920,1748004661361,-438.27,0.00022191,2]
[362122921,1748004661370,-1055.43,0.00022191,2]
[362122922,1748004661379,-531.72,0.00022191,2]
[362122923,1748004661390,-1130.78,0.00022191,2]
[362122924,1748004661399,-203.57552087,0.00022233,6]
[362122925,1748004661410,-771.77,0.00022465,2]
[362122926,1748004661419,-449.79,0.00022465,2]
[362122927,1748004661430,-648.28,0.00022465,2]
[362122928,1748004661439,-438.27,0.00022465,2]
[362122929,1748004661450,-1055.43,0.00022465,2]
[362122930,1748004661460,-531.72,0.00022465,2]
[362122931,1748004661473,-1130.78,0.00022465,2]
[362122932,1748004661483,-600.0,0.00022683,2]
[362122933,1748004661494,-772.0068,0.00022739,2]
[362122934,1748004661503,-449.96,0.00022739,2]
[362122935,1748004661514,-648.3,0.00022739,2]
[362122936,1748004661523,-438.47,0.00022739,2]
[362122937,1748004661533,-1055.4729832,0.00022739,2]
[362122938,1748004661543,-531.7496859,0.00022739,2]
[362122939,1748004661552,-1130.91,0.00022739,2]
[362122940,1748004661562,-500.0,0.00023095,7]
[362122941,1748004661571,-167.69978307,0.00023095,7]
[362122942,1748004661587,-151.0,0.00023095,7]
[362122943,1748004661597,-151.49577982,0.00023095,7]
[362122944,1748004661606,-151.0,0.00023095,7]
[362122945,1748004661616,-151.0,0.00023095,7]
[362122946,1748004661627,-169.78580715,0.00023095,7]
[362122947,1748004661636,-500.0,0.00023122,7]
[362122948,1748004661647,-151.0,0.00023122,7]
[362122949,1748004661656,-500.0,0.0002315,7]
[362122950,1748004661667,-198.0,0.0002315,7]
[362122951,1748004661678,-500.0,0.00023177,7]
[362122952,1748004661687,-180.90950702,0.00023205,7]
[362122953,1748004661697,-160.0,0.00023209,3]
[362122954,1748004661707,-4341.12,0.00023287,2]
[362122955,1748004661717,-207.4,0.00023407,2]
[362122956,1748004661731,-161.60590693,0.00023472,2]
[362122957,1748004661741,-600.0,0.00023779,2]
[362122958,1748004661751,-516.540942,0.00023898,2]
[362122959,1748004661762,-436.70198145,0.000239,2]
[362122960,1748004661771,-707.0,0.00023939,2]
[362122961,1748004661780,-2233.0,0.00023939,2]
[362122962,1748004661790,-155.044421,0.00023992,2]
[362122963,1748004661800,-2210.78171055,0.00024,2]
[362122964,1748004661809,-430.0,0.00024109,2]
[362122965,1748004661820,-430.0,0.00024109,2]
[362122966,1748004661832,-430.0,0.00024109,2]
[362122967,1748004661842,-430.0,0.00024109,2]
[362122968,1748004661852,-496.5,0.00024109,2]
[362122969,1748004661862,-2200.0,0.00024258,2]
[362122970,1748004661871,-155.044421,0.000244,9]
[362122971,1748004661882,-1276.504669,0.00024433,2]
[362122972,1748004661891,-363.6506951,0.00024548,2]
[362122973,1748004661901,-155.044421,0.00024555,7]
[362122974,1748004661912,-155.044421,0.00024731,5]
[362122975,1748004661922,-215.0738,0.00024776,2]
[362122976,1748004661932,-1138.9714458,0.00024822,2]
[362122977,1748004661941,-500.0,0.00024873,2]
[362122978,1748004661951,-600.0,0.00024873,2]
[362122979,1748004661962,-600.0,0.00024875,7]
[362122980,1748004661974,-2000.0,0.000249,2]
[362122981,1748004661984,-502079.028528,0.000249,2]
[362122982,1748004661994,-203.57552087,0.000249,12]
[362122983,1748004662003,-161.60590693,0.000249,2]
[362122984,1748004662012,-158.10231729,0.00024904,2]
[362122985,1748004662022,-155.044421,0.00024907,7]
[362122986,1748004662032,-161.575962,0.00024907,7]
[362122987,1748004662041,-155.044421,0.00024997,2]
[362122988,1748004662051,-161.575962,0.00024997,2]
[362122989,1748004662061,-422.85710789,0.00025,3]
[362122990,1748004662071,-117583.01817406,0.00025,2]
[362122991,1748004662081,-10027.22509449,0.00025,3]
[362122992,1748004662091,-3002.81272783,0.00025,30]
[362122993,1748004662105,-5443.90170963,0.00025,30]
[362122994,1748004662117,-106474.5728751,0.00025,30]
[362122995,1748004662807,-430.0,0.00016438,2]
[362122996,1748004662817,-430.0,0.00016438,2]
[362122997,1748004662827,-430.0,0.00016712,2]
[362122998,1748004662837,-430.0,0.00016712,2]
[362122999,1748004662846,-430.0,0.00016986,2]
[362123000,1748004662856,-430.0,0.00016986,2]
[362123001,1748004662866,-26827.86586543,0.00025,30]
[362123002,1748004662878,-19661.80242823,0.00025,30]
[362123010,1748004859766,5000.0,0.00016,2]
[362123011,1748005064322,5000.0,0.00016,2]
[362123012,1748005268909,5000.0,0.00016,2]
[362123013,1748005285517,5000.0,0.00016,2]
[362123014,1748005301016,5000.0,0.00016,2]
[362123015,1748005316978,5000.0,0.00016,2]
[362123016,1748005332923,5000.0,0.00016,2]
[362123017,1748005348389,5000.0,0.00016,2]
[362123018,1748005363913,5000.0,0.00016,2]
[362123019,1748005379288,5000.0,0.00016,2]
[362123020,1748005395261,5000.0,0.00016,2]
[362123021,1748005410785,2495.51526389,0.00016,2]
[362123022,1748005410811,2504.48473611,0.00016,2]
[362123023,1748005426083,5000.0,0.00016,2]
[362123024,1748005442603,5000.0,0.00016,2]
[362123025,1748005459144,5000.0,0.00016,2]
[362123026,1748005477227,5000.0,0.00016,2]
[362123027,1748005492665,5000.0,0.00016,2]
[362123028,1748005508569,5000.0,0.00016,2]
[362123030,1748005523507,-500.0,0.00016274,2]
[362123031,1748005523530,-285.9410435,0.00016274,2]
[362123032,1748005523553,-430.0,0.00016438,2]
[362123033,1748005523576,-430.0,0.00016438,2]
[362123034,1748005523599,-430.0,0.00016438,2]
[362123035,1748005523621,-430.0,0.00016438,2]
[362123036,1748005523643,-430.0,0.00016438,2]
[362123037,1748005523667,-430.0,0.00016438,2]
[362123038,1748005523694,-430.0,0.00016438,2]
[362123039,1748005523717,-430.0,0.00016438,2]
[362123040,1748005523742,-430.0,0.00016438,2]
[362123041,1748005523764,-430.0,0.00016438,2]
[362123042,1748005523787,-430.0,0.00016438,2]
[362123043,1748005523811,-430.0,0.00016438,2]
[362123044,1748005523834,-430.0,0.00016438,2]
[362123045,1748005523856,-430.0,0.00016438,2]
[362123046,1748005523881,-430.0,0.00016438,2]
[362123047,1748005523904,-430.0,0.00016438,2]
[362123048,1748005523928,-156.43912019,0.00016438,2]
[362123049,1748005523952,-326.73861614,0.00016438,2]
[362123050,1748005523976,-430.0,0.00016438,2]
[362123051,1748005524000,-430.0,0.00016438,2]
[362123052,1748005524023,-430.0,0.00016438,2]
[362123053,1748005524045,-430.0,0.00016438,2]
[362123054,1748005524204,-325.95932143,0.00016438,2]
[362123055,1748005524228,-430.0,0.00016438,2]
[362123056,1748005524251,-430.0,0.00016438,2]
[362123057,1748005524273,-430.0,0.00016438,2]
[362123058,1748005524294,-430.0,0.00016438,2]
[362123059,1748005524316,-430.0,0.00016438,2]
[362123060,1748005524338,-430.0,0.00016438,2]
[362123061,1748005524366,-430.0,0.00016438,2]
[362123062,1748005524389,-430.0,0.00016438,2]
[362123063,1748005524413,-430.0,0.00016438,2]
[362123064,1748005524435,-310.0,0.00016438,2]
[362123065,1748005524456,-178.15013796,0.00016438,2]
[362123066,1748005524479,-430.0,0.00016438,2]
[362123067,1748005524501,-430.0,0.00016438,2]
[362123068,1748005524523,-430.0,0.00016438,2]
[362123069,1748005524545,-430.0,0.00016438,2]
[362123070,1748005524568,-430.0,0.00016438,2]
[362123071,1748005524590,-401.55607488,0.00016438,2]
[362123072,1748005524614,-161.97754994,0.00016438,2]
[362123073,1748005524638,-430.0,0.00016438,2]
[362123074,1748005524662,-430.0,0.00016438,2]
[362123075,1748005524687,-577.75,0.00016438,2]
[362123076,1748005524711,-430.0,0.00016438,2]
[362123077,1748005524736,-475.22,0.00016438,2]
[362123078,1748005524758,-52.06813596,0.00016438,2]
[362123079,1748005524883,257.99374815,0.00016,2]
[362123450,1748005832526,-400.0,0.00016438,2]
[362123452,1748005832535,-430.0,0.00016438,2]
[362123455,1748005832545,-430.0,0.00016438,2]
[362123457,1748005832554,-430.0,0.00016438,2]
[362123459,1748005832564,-60.72605576,0.00016438,2]
[362123462,1748005832576,-190.2930945,0.00016438,2]
[362123464,1748005832585,-485.51273099,0.00016438,2]
[362123466,1748005832595,-340.69,0.00016438,2]
[362123468,1748005832604,-430.0,0.00016438,2]
[362123470,1748005832614,-430.0,0.00016438,2]
[362123472,1748005832624,-430.0,0.00016438,2]
[362123474,1748005832633,-430.0,0.00016438,2]
[362123476,1748005832642,-13.50417451,0.00016438,2]
[362123688,1748005838394,-416.49582549,0.00016438,2]
[362123689,1748005838404,-430.0,0.00016438,2]
[362123690,1748005838414,-430.0,0.00016438,2]
[362123691,1748005838424,-430.0,0.00016438,2]
[362123692,1748005838434,-430.0,0.00016438,2]
[362123693,1748005838444,-430.0,0.00016438,2]